Cogmind - Beta 16 @@@ ROGUE MODE // 2025.10.25 @ 22:48:50 Player: Gilvian Result: Destroyed by H-55 Commando with Gauss Rifle Performance ------------- Evolutions (2) 1000 Regions Visited (4) 800 Robots Destroyed (13) 65 Value Destroyed (338) 338 Prototype IDs (1) 20 Alien Tech Used (0) 0 Bonus (0) 0 TOTAL SCORE: 2223 Bonus ------- None Cogmind --------- Core Integrity 0/550 Matter 298/300 Energy 100/100 System Corruption 4% Temperature Cool (0) Movement Flying (40) Location -8/Materials Parts ------- > --- POWER (2) -------- (None) > --- PROPULSION (4) --- Flight Unit > --- UTILITY (3) ------ Advanced Visual Processing Unit > --- WEAPON (2) ------- Light Assault Rifle > --- INVENTORY (5) ---- (None) Peak State ------------ > --- POWER ------------ (None) > --- PROPULSION ------- (None) > --- UTILITY ---------- Advanced Visual Processing Unit Reaction Control System > --- WEAPON ----------- Maul > --- INVENTORY -------- Light Assault Rifle Light Assault Rifle [Rating: 8] Favorites ----------- Power Light Ion Engine Engine Light Ion Engine Propulsion Wheel Wheel Wheel Flight Unit Flight Unit Utility Advanced Visual Processing Unit Device Reaction Control System Processor Advanced Visual Processing Unit Weapon Grenade Launcher Energy Gun Improved Medium Laser Ballistic Gun Light Assault Rifle Launcher Grenade Launcher Impact Weapon Maul Special Melee Weapon Datajack Build | -11 -10 -9 -9 -8 ------- Run | Yrd Mat Mat Min Mat Slots Evolved 4 | . . 2 . 2 Power 1 | . . . . 1 Propulsion 2 | . . 2 . . Utility 1 | . . . . 1 Weapon . | . . . . . Parts Attached 14 | 4 2 1 1 6 Power 2 | 1 . . . 1 Engine 2 | 1 . . . 1 Core . | . . . . . Reactor . | . . . . . Propulsion 2 | 1 . . . 1 Treads . | . . . . . Leg . | . . . . . Wheel 1 | 1 . . . . Hover . | . . . . . Flight 1 | . . . . 1 Utility 3 | . . 1 . 2 Device 2 | . . 1 . 1 Storage . | . . . . . Processor 1 | . . . . 1 Hackware . | . . . . . Protection . | . . . . . Artifact . | . . . . . Weapon 7 | 2 2 . 1 2 Energy Gun 1 | . . . . 1 Energy Cannon . | . . . . . Ballistic Gun 3 | 2 . . . 1 Ballistic Cannon . | . . . . . Launcher 1 | . 1 . . . Special Weapon . | . . . . . Impact Weapon 1 | . . . 1 . Slashing Weapon . | . . . . . Piercing Weapon . | . . . . . Special Melee Weapon 1 | . 1 . . . Unidentified Prototypes 1 | . . . . 1 Parts Lost 10 | . 1 3 . 6 Power 2 | . 1 . . 1 Propulsion 1 | . . 1 . . Utility 1 | . . . . 1 Weapon 6 | . . 2 . 4 Highest Loss Streak 4 | . 1 3 . 4 To Critical Strikes . | . . . . . Average Backups 1 | 1 1 2 2 . Power . | . . . . . Propulsion . | . . . . . Utility . | . . . . . Weapon 1 | . 1 2 2 . Tool/Special . | . . . . . Unused Backups . | . . . . . Power . | . . . . . Propulsion . | . . . . . Utility . | . . . . . Weapon . | . . . . . Tool/Special . | . . . . . Average Slot Usage (%) 29 | . 56 29 . 19 Engine 4 | . 13 . . . Wheel 6 | . 14 9 . . Device 1 | . . 3 . 2 Processor 3 | . . . . 8 Ballistic Gun 3 | . 6 . . 2 Launcher 5 | . 13 8 . . Impact Weapon 1 | . . . . 4 Special Melee Weapon 3 | . 8 7 . . Peak Build Rating 8 | 4 4 5 2 8 Average Rating 3 | 2 3 2 . 5 On Entrance 1 | . 4 3 . 2 Avg Prop Armor Cover (%) . | . . . . . Naked Turns 79 | . . 5 74 . Heaviest Build 7 | 5 7 4 3 4 Greatest Support 16 | 10 10 16 3 4 Greatest Overweight (x) 1 | . . . . 1 Average Overweight (x) . | . . . . . Largest Inventory Capacity 5 | 5 5 5 5 5 Average Capacity 5 | 5 5 5 5 5 Most Carried 4 | 4 2 3 3 3 Average Carried 1 | . 1 2 2 . Final Capacity 5 | 5 5 5 5 5 Final Carried 2 | . 2 2 2 . Class Distribution -------------------- 100% | Mutant Dominant Class ---------------- Mutant | -10/Materials Mutant | -9/Materials Mutant | -9/Mines Mutant | -8/Materials Resources | -11 -10 -9 -9 -8 ----------- Run | Yrd Mat Mat Min Mat Matter Collected 368 | 210 36 . 38 84 Remotely . | . . . . . Salvage Created 308 | . 68 . . 240 Parts 21 | . 7 . . 14 Haulers Intercepted . | . . . . . Recyclers Shooed . | . . . . . Parts Field Recycled . | . . . . . Retrieved Matter . | . . . . . Parts Self-Destructed . | . . . . . Prevented . | . . . . . Parts Restored . | . . . . . Kills | -11 -10 -9 -9 -8 ------- Run | Yrd Mat Mat Min Mat Combat Hostiles Destroyed 12 | . 5 . . 7 Guns 6 | . . . . 6 AOE 5 | . 5 . . . Classes Destroyed 5 | . 3 . . 2 Worker 1 | . 1 . . . Swarmer 6 | . 3 . . 3 Grunt 4 | . 2 . . 2 Duelist 1 | . . . . 1 Sentry 1 | . . . . 1 Best Kill Streak 6 | . 6 . . 5 Combat Bots Only 5 | . 5 . . 5 Max Kills in Single Turn 3 | . 3 . . 1 Gunslinging . | . . . . . Exploded 2 | . 2 . . . Melee . | . . . . . Uniques/NPCs Destroyed . | . . . . . Combat | -11 -10 -9 -9 -8 -------- Run | Yrd Mat Mat Min Mat Hostile Shots Fired 136 | . 12 27 2 95 Missed 39 | . 5 15 1 18 Hits 97 | . 7 12 1 77 Melee 3 | . . . . 3 Projectile 94 | . 7 12 1 74 Critical Strikes 4 | . . 1 . 3 Damage Taken 1390 | . 215 158 15 1002 Core 739 | . 68 86 15 570 Absorbed by Shields . | . . . . . Core Remaining (%) 82 | 100 72 . 74 . Volleys Fired 48 | . 4 . . 44 Largest 2 | . 1 . . 2 Hottest 56 | . 30 . . 56 Shots Fired 53 | . 4 . . 49 Gun 49 | . . . . 49 Cannon . | . . . . . Launcher 4 | . 4 . . . Special . | . . . . . Kinetic 32 | . . . . 32 Thermal 17 | . . . . 17 Explosive 4 | . 4 . . . Electromagnetic . | . . . . . Robot Hit Streak 22 | . 1 . . 22 Robot Miss Streak 5 | . 1 . . 5 Penetration Max . | . . . . . Secondary Targets . | . . . . . Shots Hit Robots 50 | . 7 . . 43 Core Hits 23 | . 8 . . 15 Critical Kills . | . . . . . Critical Parts Destroyed 2 | . . . . 2 Critical Strikes 4 | . . . . 4 Burn 1 | . . . . 1 Destroy 1 | . . . . 1 Smash 2 | . . . . 2 Melee Attacks 13 | . 7 . . 6 Impact 6 | . . . . 6 Slashing . | . . . . . Piercing . | . . . . . Sneak Attacks 3 | . 3 . . . Combat Hostiles . | . . . . . Follow-up Attacks . | . . . . . Damage Inflicted 1144 | . 525 . 11 608 Guns 382 | . . . . 382 Cannons . | . . . . . Explosions 525 | . 525 . . . Melee 209 | . . . . 209 Ramming 28 | . . . 11 17 Kinetic 212 | . . . . 212 Thermal 170 | . . . . 170 Explosive 525 | . 525 . . . Electromagnetic . | . . . . . Impact 209 | . . . . 209 Slashing . | . . . . . Piercing . | . . . . . Highest Corruption 4 | . 1 . . 4 Average Corruption 3 | . 1 . . 3 Corruption Purged . | . . . . . Corruption Blocked . | . . . . . Effects 3 | . 1 . . 2 Heat Flow Errors 1 | . 1 . . . Data Loss (minor) 2 | . . . . 2 Overload Shots . | . . . . . Overflow Damage 67 | . . . . 67 Projectiles . | . . . . . Explosions . | . . . . . Melee 67 | . . . . 67 Knockbacks 1 | . . . 1 . Impact 1 | . . . 1 . Kinetic . | . . . . . Secondary . | . . . . . Self-Inflicted Damage 133 | . 122 . 4 7 Shots 3 | . 3 . . . Rammed 12 | . . . 4 8 Targets Rammed 12 | . . . 4 8 Kicked . | . . . . . Crushed . | . . . . . Highest Temperature 104 | . 104 . . 9 Average Temperature 14 | . 29 . . 5 Received Heat Transfer 378 | . 27 66 6 279 Siege Activations . | . . . . . Martial Activations . | . . . . . Shielding Activations . | . . . . . Robots Disrupted . | . . . . . Combat Hostiles . | . . . . . Robots Corrupted 1 | . . . . 1 Combat Hostiles 1 | . . . . 1 Parts Fried . | . . . . . Impact Corruptions 3 | . . . . 3 Robots Melted . | . . . . . Combat Hostiles . | . . . . . Parts Melted 1 | . . . . 1 Heat Transferred 444 | . . . . 444 Parts Sabotaged . | . . . . . Parts Stolen . | . . . . . Parts Stripped . | . . . . . Power Chain Reactions . | . . . . . Alert | -11 -10 -9 -9 -8 ------- Run | Yrd Mat Mat Min Mat Maximum Alert Level . | . . . . . Low Security (%) 100 | 100 100 100 100 100 Level 1 . | . . . . . Level 2 . | . . . . . Level 3 . | . . . . . Level 4 . | . . . . . Level 5 . | . . . . . High Security . | . . . . . Max Security . | . . . . . Peak Influence 147 | . 147 27 6 90 Initial 27 | . . 27 6 . Average 38 | . 92 14 1 19 Influence Increases 354 | . 157 27 . 170 Destroy 0b10 Robot/C 240 | . 100 . . 140 Destroy 0b10 Robot/NC 5 | . 5 . . . Destroy Leader 50 | . 20 . . 30 Successful Hack 12 | . . 12 . . Disable Machine 15 | . 15 . . . Destroy Structure 17 | . 17 . . . Lose Combat Pursuer 15 | . . 15 . . Influence Decreases 284 | . 90 77 17 100 Entered New Map 51 | . . 40 11 . Time Decay 166 | . 80 30 6 50 Lost Part 67 | . 10 7 . 50 Squads Dispatched 5 | . 3 2 . . Investigation 3 | . 2 1 . . Extermination . | . . . . . Reinforcement 2 | . 1 1 . . Assault . | . . . . . Garrison . | . . . . . Intercept . | . . . . . Searches Triggered . | . . . . . Construction Impeded . | . . . . . Haulers Reinforced . | . . . . . Active Scanning Responses . | . . . . . Cargo Convoy Interrupts . | . . . . . Stealth | -11 -10 -9 -9 -8 --------- Run | Yrd Mat Mat Min Mat Distress Signals 2 | . . 1 . 1 Communications Jammed . | . . . . . Distress Signals . | . . . . . Times Spotted 31 | . 8 12 2 9 Peak Tracking Total 13 | . 5 13 2 6 Tactical Retreats 1 | . . 1 . . Traps | -11 -10 -9 -9 -8 ------- Run | Yrd Mat Mat Min Mat Traps Triggered 4 | . 3 1 . . Indirectly . | . . . . . Trap Hack Attempts . | . . . . . Triggered . | . . . . . Disarmed . | . . . . . Reprogrammed . | . . . . . Reused . | . . . . . Traps Extracted . | . . . . . Installed . | . . . . . Triggered . | . . . . . Machines | -11 -10 -9 -9 -8 ---------- Run | Yrd Mat Mat Min Mat Machines Disabled 1 | . 1 . . . Max in Single Turn 1 | . 1 . . . Machines Repaired . | . . . . . Machines Dismantled . | . . . . . Machines Sabotaged . | . . . . . Overloaded Fab Kills . | . . . . . Hacking | -11 -10 -9 -9 -8 --------- Run | Yrd Mat Mat Min Mat Machines Accessed 4 | . 3 1 . . Terminals 1 | . 1 . . . Fabricators . | . . . . . Repair Stations . | . . . . . Recycling Units 2 | . 2 . . . Scanalyzers 1 | . . 1 . . Garrison Access . | . . . . . Total Hacks 10 | . 7 3 . . Successful 6 | . 5 1 . . Failed 4 | . 2 2 . . Catastrophic . | . . . . . Database Lockouts . | . . . . . Manual . | . . . . . Terminals 4 | . 4 . . . Fabricators . | . . . . . Repair Stations . | . . . . . Recycling Units 3 | . 3 . . . Scanalyzers 3 | . . 3 . . Garrison Access . | . . . . . Terminal Hacks 2 | . 2 . . . Record 1 | . 1 . . . Robot Analysis 1 | . 1 . . . Fabricator Hacks . | . . . . . Repair Station Hacks . | . . . . . Recycling Unit Hacks 3 | . 3 . . . Process 1 | . 1 . . . Report Inventory 2 | . 2 . . . Scanalyzer 1 | . . 1 . . Insert Component 1 | . . 1 . . Garrison Access Hacks . | . . . . . Unauthorized Hacks . | . . . . . Terminals . | . . . . . Fabricators . | . . . . . Repair Stations . | . . . . . Recycling Units . | . . . . . Scanalyzers . | . . . . . Garrison Access . | . . . . . Data Cores Recovered . | . . . . . Used . | . . . . . Hacking Detections 4 | . 3 1 . . Full Trace Events 2 | . 1 1 . . Feedback Events . | . . . . . Feedback Blocked . | . . . . . Robot Schematics Acquired . | . . . . . Robots Built . | . . . . . Authchips . | . . . . . Time . | . . . . . Total Robot Build Rating . | . . . . . Part Schematics Acquired . | . . . . . Parts Built . | . . . . . Authchips . | . . . . . Time . | . . . . . Total Part Build Rating . | . . . . . Part Studies Acquired . | . . . . . Parts Repaired . | . . . . . Time . | . . . . . Parts Recycled . | . . . . . Recycled Matter 54 | . 54 . . . Retrieved Matter . | . . . . . Retrieved Components . | . . . . . Parts Scanalyzed 1 | . . 1 . . Part Schematics Acquired . | . . . . . Parts Damaged . | . . . . . Bothacking | -11 -10 -9 -9 -8 ------------ Run | Yrd Mat Mat Min Mat Used RIF Installer . | . . . . . Robots Hacked 2 | . 2 . . . Non-combat 2 | . 2 . . . Combat . | . . . . . Robot Hacks Applied 2 | . 2 . . . parse_system 1 | . 1 . . . no_distress 1 | . 1 . . . Relay Couplers Released . | . . . . . Fabnet Peak Effective % . | . . . . . Robots Rewired . | . . . . . Allies Hacked . | . . . . . Hacks Repelled . | . . . . . Allies | -11 -10 -9 -9 -8 -------- Run | Yrd Mat Mat Min Mat Total Allies . | . . . . . Largest Group . | . . . . . Highest-Rated Group . | . . . . . Highest-Rated Ally . | . . . . . Total Orders . | . . . . . Ally Attacks . | . . . . . Total Damage . | . . . . . Kills . | . . . . . Allies Corrupted . | . . . . . Allies Melted . | . . . . . Intel | -11 -10 -9 -9 -8 ------- Run | Yrd Mat Mat Min Mat Active Infowar (turns) 205 | . . . . 205 Optics 205 | . . . . 205 Robot Analysis Total 1 | . 1 . . . Derelict Logs Recovered 1 | . . . 1 . Drone Launches . | . . . . . Drone Recoveries . | . . . . . Exploration | -11 -10 -9 -9 -8 ------------- Run | Yrd Mat Mat Min Mat Turns Passed 588 | 28 184 83 78 215 Spaces Moved 612 | 28 196 111 141 136 Core 308 | 12 . 27 141 128 Treads . | . . . . . Legs . | . . . . . Wheels 296 | 16 196 84 . . Hover . | . . . . . Flight 8 | . . . . 8 Fastest Speed 40 | 50 80 50 50 40 Average Speed 64 | 67 80 72 50 49 Slowest Speed 100 | 80 80 80 50 100 Overloaded Moves . | . . . . . Propulsion Burnouts . | . . . . . Robots Hopped . | . . . . . Potential Cave-ins . | . . . . . Cave-ins Triggered . | . . . . . Exploration Rate (%) 21 | 2 46 17 32 11 Regions Visited 4 Branch Regions 1 Pre-discovered Areas 1 | . . . 1 . Known Exits Taken . | . . . . . Unknown Exits Taken 4 | 1 1 1 1 . Scrap Searched 1 | . . . 1 . Spaces Dug . | . . . . . Terrain Destroyed 17 | . 17 . . . Melee . | . . . . . Projectile . | . . . . . AOE 17 | . 17 . . . Terrain Rammed . | . . . . . Walls Destroyed . | . . . . . Machines Disabled . | . . . . . Actions | -11 -10 -9 -9 -8 --------- Run | Yrd Mat Mat Min Mat Total 737 | 36 213 112 147 229 Wait 25 | 1 2 . 1 21 Move 608 | 27 195 110 140 136 Hop . | . . . . . Pick Up 14 | 4 2 1 1 6 Fast Attach . | . . . . . Attach 14 | 4 . 1 1 8 Detach . | . . . . . Swap 3 | . 3 . . . Drop . | . . . . . Fire 48 | . 4 . . 44 Melee 13 | . 7 . . 6 Ram 12 | . . . 4 8 Kick . | . . . . . Crush . | . . . . . Escape Stasis . | . . . . . Rewire . | . . . . . Trap . | . . . . . Miscellaneous . | . . . . . Route ------- -11/Scrapyard -10/Materials (discovered 2 exits: *Mat / [*Min]) -9/Materials -9/Mines -8/Materials History --------- Turn | Location | Event 11 | -11/Scrapyard | Discovered new exit (range 15) 29 | -11/Scrapyard | Entered Materials 76 | -10/Materials | Discovered new exit (range 6) 201 | -10/Materials | Discovered new exit (range 16) 213 | -10/Materials | Entered another Materials area 213 | -9/Materials | Evolved 2 slots: Propulsion x2 292 | -9/Materials | Discovered new exit (range 9) 296 | -9/Materials | Entered Mines 302 | -9/Mines | Build established: Mutant 304 | -9/Mines | Learned location of Zion (-7) 313 | -9/Mines | Lost 3 parts (1n2w) 367 | -9/Mines | Discovered new exit (range 5) 374 | -9/Mines | Entered Materials 374 | -8/Materials | Evolved 2 slots: Power x1, Utility x1 524 | -8/Materials | Core integrity fell below 50% 538 | -8/Materials | Lost 4 parts (1u3w) 561 | -8/Materials | Core integrity fell below 20% 589 | -8/Materials | Destroyed by H-55 Commando with Gauss Rifle Last Messages --------------- 00567_ Acquired 13 matter. 00567_ Acquired 1 matter. 00571_ Acquired Flight Unit. 00572_ Slug penetrates Wall. 00575_ Acquired Lgt. Ion Engine. 00576_ Slug penetrates Wall. 00578_ Acquired 20 matter. 00580_ Penetrated by Slug. 00580_ Repair Station disabled. 00580_ Backup Plating I tumbles out of repair station. 00580_ Backup Laser I tumbles out of repair station. 00582_ System corrupted: Component data lost. 00583_ Penetrated by Slug. 00584_ K-01 Serf collects debris. 00586_ Penetrated by Slug. 00586_ Lgt. Ion Engine destroyed. 00587_ K-01 Serf collects debris. 00589_ Penetrated by Slug. Map ----- +----------------------------------------------------+ | ?????????????????????????????????????????????????? | | ?????????????????????????????????????????????????? | | ?????????????????????????????????????????????????? | | ?????????????????????????????????????????????????? | | ?????????????????????????????????????????????????? | | ?????????????????????????????????????????????????? | | ?????????????????????????? ????????????????????? | | ?????????????????????????? ??????????????????? | | ?????????????????????????? ??????????????????? | | ?????????????????????????? ??????????????????? | | ?????????????????????????? ??????????????????? | | ?????????????????????????? ???????????????????? | | ?????????????????????????? ???????????????????? | | ?????????????????????????? ???????????????????? | | ?????????????????????????? ???????????????????? | | ?????????????????????????# #???????????????????? | | ?????????????????????????# #???????????????????? | | ?????????????????????????# #?##????????????????? | | ?????????????????????????# # ?????????????????? | | ?????????????????????????# # ??????????????????? | | ???????????????########### +???????????????????? | | ???????????????# # #???????????????????? | | ???????????????# # u #???????????????????? | | ???????????????# # hk#???????????????????? | | ???????????????# !%# = #???????????????????? | | ???????????????# """ " "%@%[ #???????????????????? | | ???????????????# """ "R" #u #???????????????????? | | ???????????????# """ "" !#% #???????????????????? | | ???????????????# [ #% t#???????????????????? | | ???????????????###########% #???????????????????? | | ??????????????????# #% #???????????????????? | | ??????????????????# #= #???????????????????? | | ??????????????????# " +% +???????????????????? | | ??????????????????# " #! #???????????????????? | | ??????????????????# # #???????????????????? | | ??????????????????# # #???????????????????? | | ??????????????????######## #???????????????????? | | ?????????????????????????# #???????????????????? | | ?????????????????????????# #???????????????????? | | ?????????????????????????# #???????????????????? | | ?????????????????????????# #???????????????????? | | ?????????????????????????# #???????????????????? | | ?????????????????????????# #???????????????????? | | ?????????????????????????# #???????????????????? | | ?????????????????????????# #???????????????????? | | ??????????????????????#### #???????????????????? | | ???????????????######## #???????????????????? | | ???????????????# # #???????????????????? | | ???????????????# """ # #???????????????????? | | ???????????????# """ # #???????????????????? | +----------------------------------------------------+ Best States ------------- Heat Dissipation 31 Energy Generation 10 Energy Capacity 125 Matter Stores 300 Matter Capacity 300 Sight Range 20 Terrain Scan Density 10 Additional Mass Support 6 Evasion (%) 50 Item Schematics ----------------- None Robot Schematics ------------------ None Fabricated ------------ Nothing Repaired ---------- Nothing Studied --------- None Alien Tech Used ----------------- None Achievements -------------- For Emergencies Only Not Today, Chutes Spot Them First Challenges ------------ None Game ------ Seed PulseSixSabre Manual? 0 Play Time 00:13:12 Cumulative 8.2 hours Start 2025.10.25 @ 22:19:09 End 2025.10.25 @ 22:48:50 Sessions 1 Manual Loads 0 Difficulty Rogue Special Mode None Game No. 27 Rogue 27 Adventurer 0 Explorer 0 Win Type - Total 0 Types 0/0/0/0/0/0/0/0/0/0 Lore% 5 Gallery% 10 Achievement% 11 Wizard Run 0 Options --------- Layout 1 ASCII 0 Keyboard 0 Movement Numpad Keybinds 0 Fullscreen 1 Font 24/Smallcaps Map View 50x35 Zoom Use 0% Tactical HUD 1 Map Filters NONE Filters NONE Steam 1 RUN: 1fde2833-a48e-4eac-ba21-702c0ba8f023